Cogmind - Beta 13 @@@ ROGUE MODE // 2024.04.25 @ 22:07:10 Player: Gabe+Kate4EVR Result: Destroyed by Y-54 Guardian with Gatling Laser Performance ------------- Evolutions (3) 1500 Regions Visited (5) 1000 Robots Destroyed (45) 225 Value Destroyed (1736) 1736 Prototype IDs (5) 100 Alien Tech Used (0) 0 Bonus (36) 36 TOTAL SCORE: 4597 Bonus ------- High Alert Combat Kills 36 Cogmind --------- Core Integrity 0/700 Matter 300/300 Energy 24/100 System Corruption 9% Temperature Hot (291) Movement Core (50) Location -7/Storage Parts ------- > --- POWER (2) -------- (None) > --- PROPULSION (5) --- (None) > --- UTILITY (4) ------ (None) > --- WEAPON (2) ------- Heavy Flail > --- INVENTORY (5) ---- Armored Wheel Cooled Particle Cannon Improved Grenade Launcher Missile Launcher Peak State ------------ > --- POWER ------------ Improved Deuterium Engine Light Angular Momentum Engine > --- PROPULSION ------- Armored Wheel Armored Wheel Armored Wheel Armored Wheel Armored Wheel > --- UTILITY ---------- Advanced Heat Sink Large Storage Unit Heavy Armor Plating > --- WEAPON ----------- Precision Shock Rifle Cooled Particle Cannon > --- INVENTORY -------- Deuterium Engine Light Deuterium Engine Carbon-fiber Leg Carbon-fiber Leg Carbon-fiber Leg Carbon-fiber Leg Large Storage Unit Precision Shock Rifle Advanced Beam Rifle Advanced Beam Rifle Cooled Particle Cannon Gauss Rifle Improved Grenade Launcher Missile Launcher Heavy Flail [Rating: 46] Favorites ----------- Power Light Angular Momentum Engine Engine Light Angular Momentum Engine Power Core Light Nuclear Core Propulsion Armored Wheel Treads Light Treads Leg Aluminum Leg Wheel Armored Wheel Hover Unit Improved Hover Unit Utility Improved Heat Sink Device Improved Heat Sink Storage Large Storage Unit Protection Heavy Armor Plating Weapon Advanced Beam Cannon Energy Gun Advanced Beam Rifle Energy Cannon Advanced Beam Cannon Ballistic Gun Autogun Launcher Improved Grenade Launcher Impact Weapon Heavy Flail Build | -11 -10 -9 -8 -7 -7 ------- Run | Yrd Mat Mat Mat Fac Sto Slots Evolved 6 | . . 2 2 2 . Power 1 | . . . . 1 . Propulsion 3 | . . 2 1 . . Utility 2 | . . . 1 1 . Weapon . | . . . . . . Parts Attached 74 | 6 6 17 16 8 21 Power 12 | 1 . 3 2 3 3 Engine 11 | 1 . 2 2 3 3 Core 1 | . . 1 . . . Reactor . | . . . . . . Propulsion 26 | 2 2 6 8 1 7 Treads 2 | 2 . . . . . Leg 8 | . . 4 3 . 1 Wheel 12 | . . . 5 1 6 Hover 4 | . 2 2 . . . Flight . | . . . . . . Utility 13 | 1 2 2 5 3 . Device 4 | . . 1 3 . . Storage 3 | 1 . . 2 . . Processor . | . . . . . . Hackware . | . . . . . . Protection 6 | . 2 1 . 3 . Artifact . | . . . . . . Weapon 23 | 2 2 6 1 1 11 Energy Gun 11 | 1 . 2 1 1 6 Energy Cannon 5 | . . 2 . . 3 Ballistic Gun 5 | 1 2 2 . . . Ballistic Cannon . | . . . . . . Launcher 1 | . . . . . 1 Special Weapon . | . . . . . . Impact Weapon 1 | . . . . . 1 Slashing Weapon . | . . . . . . Piercing Weapon . | . . . . . . Special Melee Weapon . | . . . . . . Unidentified Prototypes 5 | . . 2 . . 3 Corrupted Parts 1 | . . . . 1 . System Corruption 7 | . . . . 7 . Parts Lost 29 | . . 12 . 1 16 Power 6 | . . 2 . . 4 Propulsion 12 | . . 4 . 1 7 Utility 4 | . . 2 . . 2 Weapon 7 | . . 4 . . 3 Highest Loss Streak 16 | . . 12 . 1 16 To Critical Strikes . | . . . . . . Average Slot Usage (%) 93 | . 96 88 98 96 86 Engine 10 | . 14 5 9 14 14 Treads 1 | . 10 . . . . Leg 17 | . . 30 29 . . Wheel 14 | . . . 14 38 35 Hover 4 | . 17 6 . . . Device 10 | . . 7 17 14 6 Storage 9 | . 14 11 9 7 7 Protection 3 | . 11 2 . 5 5 Energy Gun 3 | . 5 4 . 7 6 Energy Cannon 9 | . . 4 17 7 7 Ballistic Gun 5 | . 22 10 . . . Naked Turns 1 | . . . . . 1 Heaviest Build 69 | 13 21 22 39 62 69 Greatest Support 60 | 40 40 40 60 60 60 Greatest Overweight (x) 6 | . 5 6 3 1 6 Average Overweight (x) . | . . . . . . Largest Inventory Capacity 15 | 8 8 8 15 15 15 Average Capacity 11 | 6 8 8 13 15 14 Most Carried 15 | 4 8 8 15 15 15 Average Carried 10 | 2 6 6 13 14 14 Final Capacity 15 | 8 8 8 15 15 5 Final Carried 15 | 4 8 8 15 15 4 Class Distribution -------------------- 60% | Mutant 39% | Scavenger-Mutant Dominant Class ---------------- Mutant | -10/Materials Scavenger-Mutant | -9/Materials Scavenger-Mutant | -8/Materials Mutant | -7/Factory Mutant | -7/Storage Resources | -11 -10 -9 -8 -7 -7 ----------- Run | Yrd Mat Mat Mat Fac Sto Matter Collected 1116 | 181 14 409 231 60 221 Remotely 10 | . . . 10 . . Salvage Created 2283 | . 98 398 993 189 605 Parts 95 | . 7 17 35 12 24 Haulers Intercepted 4 | . . 1 1 . 2 Recyclers Shooed 1 | . . . 1 . . Parts Field Recycled . | . . . . . . Retrieved Matter . | . . . . . . Parts Self-Destructed . | . . . . . . Prevented . | . . . . . . Kills | -11 -10 -9 -8 -7 -7 ------- Run | Yrd Mat Mat Mat Fac Sto Combat Hostiles Destroyed 34 | . 2 7 12 3 10 Guns 12 | . 2 6 . 1 3 Cannons 16 | . . 1 9 2 4 AOE 3 | . . . . . 3 Classes Destroyed 9 | . 2 2 4 . 1 Tunneler 1 | . . . 1 . . Hauler 4 | . . 1 1 . 2 Recycler 3 | . . . 3 . . Operator 1 | . 1 . . . . Watcher 2 | . . . 2 . . Grunt 23 | . 2 6 7 2 6 Sentry 8 | . . 1 4 1 2 Hunter 1 | . . . 1 . . Programmer 2 | . . . . . 2 Best Kill Streak 4 | . 2 4 4 3 3 Combat Bots Only 4 | . 2 4 4 3 3 Max Kills in Single Turn 3 | . 1 1 1 1 3 Gunslinging . | . . . . . . Exploded 3 | . . . . . 3 Melee . | . . . . . . Uniques/NPCs Destroyed . | . . . . . . Combat | -11 -10 -9 -8 -7 -7 -------- Run | Yrd Mat Mat Mat Fac Sto Hostile Shots Fired 655 | . 9 138 69 74 365 Missed 190 | . 6 22 27 24 111 Damage Taken 4954 | . 31 1550 672 467 2234 Core 1187 | . . 339 143 68 637 Absorbed by Shields . | . . . . . . Regen/Repaired (Parts) 55 | . . . . 55 . Core Remaining (%) 72 | 100 100 15 74 . . Volleys Fired 156 | . 13 35 55 14 39 Largest 2 | . 2 2 2 2 2 Hottest 180 | . 60 136 136 131 180 Shots Fired 301 | . 22 67 110 29 73 Gun 140 | . 22 63 . 14 41 Cannon 159 | . . 4 110 15 30 Launcher 2 | . . . . . 2 Special . | . . . . . . Kinetic 67 | . 13 54 . . . Thermal 216 | . 9 11 110 18 68 Explosive 2 | . . . . . 2 Electromagnetic 16 | . . 2 . 11 3 Robot Hit Streak 16 | . 2 6 8 9 16 Robot Miss Streak 4 | . 4 4 2 1 2 Penetration Max . | . . . . . . Secondary Targets 3 | . 1 2 . . . Max Gunslinging Chain 1 | . 1 1 . . . Shots Hit Robots 202 | . 10 41 75 21 55 Core Hits 78 | . 6 16 27 7 22 Critical Kills 3 | . . . 3 . . Critical Parts Destroyed . | . . . . . . Critical Strikes 5 | . . . 3 . 2 Burn 2 | . . . . . 2 Meltdown 3 | . . . 3 . . Melee Attacks 1 | . . . . . 1 Impact 1 | . . . . . 1 Slashing . | . . . . . . Piercing . | . . . . . . Sneak Attacks . | . . . . . . Combat Hostiles . | . . . . . . Follow-up Attacks . | . . . . . . Damage Inflicted 4679 | . 123 672 1547 385 1952 Guns 1628 | . 123 652 . 179 674 Cannons 2712 | . . 20 1547 206 939 Explosions 279 | . . . . . 279 Melee 60 | . . . . . 60 Ramming . | . . . . . . Kinetic 641 | . 103 538 . . . Thermal 3503 | . 20 122 1547 240 1574 Explosive 279 | . . . . . 279 Electromagnetic 196 | . . 12 . 145 39 Impact 60 | . . . . . 60 Slashing . | . . . . . . Piercing . | . . . . . . Highest Corruption 9 | . . . . 7 9 Average Corruption 7 | . . . . 7 7 Corruption Purged . | . . . . . . Corruption Blocked . | . . . . . . Effects 13 | . . . . 2 11 Message Errors 3 | . . . . . 3 Heat Flow Errors 2 | . . . . . 2 Data Loss (minor) 2 | . . . . . 2 Data Loss (major) 1 | . . . . 1 . Misfires 1 | . . . . 1 . Weapon Failures 4 | . . . . . 4 Overload Shots 22 | . . . . . 22 Effects 2 | . . . . . 2 Energy Bleed 1 | . . . . . 1 Short Circuit 1 | . . . . . 1 Overflow Damage 102 | . . . 6 . 96 Projectiles 102 | . . . 6 . 96 Explosions . | . . . . . . Melee . | . . . . . . Knockbacks . | . . . . . . Impact . | . . . . . . Kinetic . | . . . . . . Secondary . | . . . . . . Self-Inflicted Damage . | . . . . . . Shots . | . . . . . . Rammed . | . . . . . . Targets Rammed . | . . . . . . Kicked . | . . . . . . Crushed . | . . . . . . Highest Temperature 601 | . 12 379 72 14 601 Average Temperature 135 | . 9 140 26 4 180 Received Heat Transfer 2142 | . 12 894 360 207 669 Effects 9 | . . 2 . . 7 Shutdowns 1 | . . . . . 1 Energy Bleed 4 | . . 2 . . 2 Short Circuit 3 | . . . . . 3 Damage (core) 1 | . . . . . 1 Siege Activations . | . . . . . . Robots Corrupted . | . . . . . . Combat Hostiles . | . . . . . . Parts Fried . | . . . . . . Impact Corruptions . | . . . . . . Robots Melted 4 | . . . 4 . . Combat Hostiles 3 | . . . 3 . . Parts Melted 12 | . . . 6 . 6 Heat Transferred 5795 | . 50 296 2812 444 2193 Parts Sabotaged . | . . . . . . Parts Stolen . | . . . . . . Parts Stripped . | . . . . . . Power Chain Reactions . | . . . . . . Alert | -11 -10 -9 -8 -7 -7 ------- Run | Yrd Mat Mat Mat Fac Sto Peak Influence 478 | . 55 178 322 255 478 Initial 115 | . . 22 5 77 115 Average 139 | . 49 65 172 138 269 Maximum Alert Level 2 | . . . 1 1 2 Low Security (%) 77 | 100 100 100 77 71 31 Level 1 19 | . . . 22 28 55 Level 2 2 | . . . . . 12 Level 3 . | . . . . . . Level 4 . | . . . . . . Level 5 . | . . . . . . High Security . | . . . . . . Max Security . | . . . . . . Squads Dispatched 5 | . 1 1 . 1 2 Investigation 1 | . . . . 1 . Extermination 1 | . . . . . 1 Reinforcement 3 | . 1 1 . . 1 Assault . | . . . . . . Garrison . | . . . . . . Intercept . | . . . . . . Searches Triggered . | . . . . . . Construction Impeded . | . . . . . . Haulers Reinforced . | . . . . . . Active Scanning Responses . | . . . . . . Cargo Convoy Interrupts . | . . . . . . Stealth | -11 -10 -9 -8 -7 -7 --------- Run | Yrd Mat Mat Mat Fac Sto Distress Signals 5 | . 1 2 1 . 1 Communications Jammed . | . . . . . . Distress Signals . | . . . . . . Times Spotted 60 | . 8 13 18 5 16 Peak Tracking Total 7 | . 3 7 4 3 6 Tactical Retreats 3 | . . . 1 2 . Traps | -11 -10 -9 -8 -7 -7 ------- Run | Yrd Mat Mat Mat Fac Sto Traps Triggered . | . . . . . . Indirectly . | . . . . . . Trap Hack Attempts . | . . . . . . Triggered . | . . . . . . Disarmed . | . . . . . . Reprogrammed . | . . . . . . Reused . | . . . . . . Traps Extracted . | . . . . . . Installed . | . . . . . . Triggered . | . . . . . . Machines | -11 -10 -9 -8 -7 -7 ---------- Run | Yrd Mat Mat Mat Fac Sto Machines Disabled 6 | . . 1 2 . 3 Max in Single Turn 1 | . . 1 1 . 1 Machines Repaired . | . . . . . . Machines Dismantled . | . . . . . . Machines Sabotaged . | . . . . . . Overloaded Fab Kills . | . . . . . . Hacking | -11 -10 -9 -8 -7 -7 --------- Run | Yrd Mat Mat Mat Fac Sto Machines Accessed 5 | . . 2 1 1 1 Terminals 4 | . . 2 1 . 1 Fabricators . | . . . . . . Repair Stations 1 | . . . . 1 . Recycling Units . | . . . . . . Scanalyzers . | . . . . . . Garrison Access . | . . . . . . Total Hacks 10 | . . 3 3 3 1 Successful 5 | . . . 2 2 1 Failed 5 | . . 3 1 1 . Catastrophic 2 | . . 2 . . . Database Lockouts . | . . . . . . Manual 6 | . . 3 3 . . Terminals 7 | . . 3 3 . 1 Fabricators . | . . . . . . Repair Stations 3 | . . . . 3 . Recycling Units . | . . . . . . Scanalyzers . | . . . . . . Garrison Access . | . . . . . . Terminal Hacks 3 | . . . 2 . 1 Open Door 1 | . . . . . 1 Alert Level 1 | . . . 1 . . Unreport Threat 1 | . . . 1 . . Fabricator Hacks . | . . . . . . Repair Station Hacks 2 | . . . . 2 . Scan Component 1 | . . . . 1 . Repair 1 | . . . . 1 . Recycling Unit Hacks . | . . . . . . Scanalyzer . | . . . . . . Garrison Access Hacks . | . . . . . . Unauthorized Hacks . | . . . . . . Terminals . | . . . . . . Fabricators . | . . . . . . Repair Stations . | . . . . . . Recycling Units . | . . . . . . Scanalyzers . | . . . . . . Garrison Access . | . . . . . . Data Cores Recovered . | . . . . . . Used . | . . . . . . Hacking Detections 4 | . . 2 1 1 . Full Trace Events 1 | . . . . 1 . Feedback Events . | . . . . . . Feedback Blocked . | . . . . . . Robot Schematics Acquired . | . . . . . . Robots Built . | . . . . . . Authchips . | . . . . . . Time . | . . . . . . Total Robot Build Rating . | . . . . . . Part Schematics Acquired . | . . . . . . Parts Built . | . . . . . . Authchips . | . . . . . . Time . | . . . . . . Total Part Build Rating . | . . . . . . Parts Repaired 1 | . . . . 1 . Time 16 | . . . . 16 . Parts Recycled . | . . . . . . Recycled Matter . | . . . . . . Retrieved Matter . | . . . . . . Retrieved Components . | . . . . . . Parts Scanalyzed . | . . . . . . Part Schematics Acquired . | . . . . . . Parts Damaged . | . . . . . . Bothacking | -11 -10 -9 -8 -7 -7 ------------ Run | Yrd Mat Mat Mat Fac Sto Used RIF Installer . | . . . . . . Robots Hacked . | . . . . . . Non-combat . | . . . . . . Combat . | . . . . . . Robot Hacks Applied . | . . . . . . Relay Couplers Released . | . . . . . . Fabnet Peak Effective % . | . . . . . . Robots Rewired . | . . . . . . Allies Hacked . | . . . . . . Hacks Repelled . | . . . . . . Allies | -11 -10 -9 -8 -7 -7 -------- Run | Yrd Mat Mat Mat Fac Sto Total Allies . | . . . . . . Largest Group . | . . . . . . Highest-Rated Group . | . . . . . . Highest-Rated Ally . | . . . . . . Total Orders . | . . . . . . Ally Attacks . | . . . . . . Total Damage . | . . . . . . Kills . | . . . . . . Allies Corrupted . | . . . . . . Allies Melted . | . . . . . . Intel | -11 -10 -9 -8 -7 -7 ------- Run | Yrd Mat Mat Mat Fac Sto Robot Analysis Total . | . . . . . . Derelict Logs Recovered . | . . . . . . Drone Launches . | . . . . . . Drone Recoveries . | . . . . . . Exploration | -11 -10 -9 -8 -7 -7 ------------- Run | Yrd Mat Mat Mat Fac Sto Turns Passed 2216 | 82 327 472 769 180 386 Spaces Moved 1368 | 45 215 316 475 108 209 Core 15 | 2 1 8 . . 4 Treads 94 | 43 51 . . . . Legs 562 | . . 232 328 . 2 Wheels 458 | . . . 147 108 203 Hover 239 | . 163 76 . . . Flight . | . . . . . . Fastest Speed 48 | 50 116 48 90 90 50 Average Speed 111 | 155 127 107 110 91 105 Slowest Speed 350 | 160 300 350 135 105 350 Overloaded Moves . | . . . . . . Propulsion Burnouts . | . . . . . . Robots Hopped . | . . . . . . Cave-ins Triggered . | . . . . . . Exploration Rate (%) 21 | 4 37 28 31 2 29 Regions Visited 5 Branch Regions 1 Pre-discovered Areas . | . . . . . . Known Exits Taken . | . . . . . . Unknown Exits Taken 5 | 1 1 1 1 1 . Scrap Searched . | . . . . . . Spaces Dug . | . . . . . . Terrain Destroyed 30 | . . . . . 30 Melee . | . . . . . . Projectile 6 | . . . . . 6 AOE 24 | . . . . . 24 Terrain Rammed . | . . . . . . Walls Destroyed . | . . . . . . Machines Disabled . | . . . . . . Actions | -11 -10 -9 -8 -7 -7 --------- Run | Yrd Mat Mat Mat Fac Sto Total 1796 | 54 248 397 626 160 311 Wait 58 | . . 7 24 25 2 Move 1363 | 44 214 315 474 107 209 Hop . | . . . . . . Pick Up 65 | 4 6 13 25 3 14 Fast Attach 35 | 6 4 10 9 2 4 Attach 17 | . . 7 1 3 6 Detach 3 | . 2 1 . . . Swap 22 | . 2 . 6 3 11 Drop 76 | . 7 9 32 3 25 Fire 156 | . 13 35 55 14 39 Melee 1 | . . . . . 1 Ram . | . . . . . . Kick . | . . . . . . Crush . | . . . . . . Escape Stasis . | . . . . . . Rewire . | . . . . . . Trap . | . . . . . . Miscellaneous . | . . . . . . Route ------- -11/Scrapyard -10/Materials (discovered 2 exits: *Mat / [*Min]) -9/Materials (discovered 2 exits: *Mat / [*Min]) -8/Materials -7/Factory -7/Storage History --------- Turn | Location | Event 24 | -11/Scrapyard | Discovered new exit (range 15) 83 | -11/Scrapyard | Entered Materials 311 | -10/Materials | Build established: Mutant 376 | -10/Materials | Discovered new exit (range 8) 378 | -10/Materials | Discovered new exit (range 14) 410 | -10/Materials | Entered another Materials area 410 | -9/Materials | Evolved 2 slots: Propulsion x2 511 | -9/Materials | Core integrity fell below 50% 578 | -9/Materials | Lost 12 parts (2p4n2u4w) 669 | -9/Materials | Discovered new exit (range 16) 728 | -9/Materials | Core integrity fell below 20% 861 | -9/Materials | Discovered new exit (range 9) 865 | -9/Materials | Build established: Scavenger-Mutant 882 | -9/Materials | Entered another Materials area 882 | -8/Materials | Evolved 2 slots: Propulsion x1, Utility x1 1629 | -8/Materials | Discovered new exit (range 15) 1651 | -8/Materials | Entered Factory 1651 | -7/Factory | Evolved 2 slots: Power x1, Utility x1 1720 | -7/Factory | Build established: Mutant 1753 | -7/Factory | Repaired Lgt. Angular Momentum Engine 1808 | -7/Factory | Discovered new exit (range 5) 1831 | -7/Factory | Entered Storage 2199 | -7/Storage | Core integrity fell below 50% 2214 | -7/Storage | Core integrity fell below 20% 2217 | -7/Storage | Destroyed by Y-54 Guardian with Gatling Laser Last Messages --------------- 02204_ Arm. Wheel destroyed. 02204_ K-01 Serf collects debris. 02205_ M-13 Machinist repairs Y-54 Guardian. 02206_ Y-54 Guardian misfires. 02206_ R-06 Scavenger collects Carbon-fiber Leg. 02207_ Acquired 10 matter. 02208_ Overheating: Energy bleed (-4). 02208_ K-01 Serf collects debris. 02208_ M-13 Machinist repairs K-01 Serf. 02209_ Carbon-fiber Leg broken. 02209_ Overheating: Short circuit. 02210_ The unstable cave ceiling collapses. 02211_ K-01 Serf collects debris. 02212_ Broken Carbon-fiber Leg destroyed. 02212_ Dropped Lrg. Storage Unit. 02213_ The unstable cave ceiling collapses. 02213_ U-05 Engineer builds a Wall. 02214_ Acquired 9 matter. 02214_ K-01 Serf collects debris. 02215_ Extracted 1 matter. Map ----- +----------------------------------------------------+ | % #????????????????????????????? | | % = #????????????????????????????? | | ####+#### = #????????????????????????????? | | ?## ### =##????????????????????????????? | | ?#T #?#! #?????????????????????????????? | | ### ##?#% #?????????????????????????????? | | # #?# #?????????????????????????????? | | #]] #?# ! #?????????????????????????????? | | #]] [[[#?#! !#?????????? #?????????????????? | | #]]]![ #?# ! #?????????? #?????????????????? | | ########?# % #?????????? #?????????????????? | | ?????????# #?????????? #?????????????????? | | ?????????# %#?????????? #?????????????????? | | ??????#####+#####??????? #?????????????????? | | ??????# #??????? #?????????????????? | | ??????# """" ########+##????????????????? | | ??????# """" + ? ?????????????????? | | ??????# """ ##???# ??????????????????? | | ?????## """|%=#????# #????????##????????? | | ?????# ! #????# ######### #????????? | | ?????## ###### ## #????????? | | ??????# ! + u ## !%! #????????? | | ??????################ # ! #????????? | | ???????? ##% kY""" #????????? | | ???????? # % %=[ """ + ??????? | | ???????? | Y %Y@! !"""" # ???????? | | ???????? m! ## =!"""" #????????? | | ???????? * # ]!= #????????? | | ?????????#####+###### # ## [ #????????? | | ???????????? ??????#########" "###????????? | | ?????????? ?????????????????"R"#??????????? | | ?????????? ??????????????????"""#??????????? | | ?????????????????????????????####??????????? | | ???????????????????????????????????????????? | | ???????????????????????????????????????????? | | ???????????????????????????????????????????? | | ???????????????????????????????????????????? | | ???????????????????????????????????????????? | | ???????????????????????????????????????????? | | ???????????????????????????????????????????? | | ???????????????????????????????????????????? | | ???????????????????????????????????????????? | | ???????????????????????????????????????????? | | ???????????????????????????????????????????? | | ???????????????????????????????????????????? | | ???????????????????????????????????????????? | | ???????????????????????????????????????????? | | ???????????????????????????????????????????? | | ???????????????????????????????????????????? | | ???????????????????????????????????????????? | +----------------------------------------------------+ Best States ------------- Heat Dissipation 67 Energy Generation 29 Energy Capacity 340 Matter Stores 300 Matter Capacity 300 Sight Range 16 Terrain Scan Density 10 Armor Coverage 600 Evasion (%) 55 Recoil Reduction 2 Item Schematics ----------------- None Robot Schematics ------------------ None Fabricated ------------ Nothing Alien Tech Used ----------------- None Achievements -------------- None Challenges ------------ None Game ------ Seed DerelictCouplerArray Manual? 0 Play Time 00:19:20 Cumulative 124.5 hours Start 2024.04.25 @ 21:49:22 End 2024.04.25 @ 22:07:10 Sessions 1 Manual Loads 0 Difficulty Rogue Special Mode None Game No. 256 Rogue 256 Adventurer 0 Explorer 0 Win Type - Total 0 Types 0/0/0/0/0/0/0/0/0 Lore% 34 Gallery% 54 Achievement% 37 Wizard Run 0 Options --------- Layout 0 ASCII 0 Keyboard 1 Movement Numpad Keybinds 0 Fullscreen 2 Font 18/X11 Map View 76x50 Zoom Use 0% Tactical HUD 1 Map Filters NONE Filters NONE Steam 1 RUN: 610960cd-d261-4678-b520-4d0d316dbf9f